bitfinex-derivatives/quotes_ETHF0:USTF0_20250114
["timestamp","ask_amount","ask_price","bid_price","bid_amount"]
[1736835361065,1.24815,3171.8,3171.6,41.11547]
[1736835361773,0.481,3171.8,3171.7,0.31546]
[1736835362371,3.2078,3171.9,3171.8,0.31545]
[1736835362666,3.2078,3171.9,3171.8,2.83937187]
[1736835363071,0.4636,3172.1,3171.8,43.32392187]
[1736835363374,0.9246,3172.4,3171.8,43.32392187]
[1736835363574,0.9246,3172.4,3172.3,2.52392187]
[1736835363575,1.23999,3172.4,3172.3,2.52392187]
[1736835364164,1.23999,3172.4,3172.3,43.32392187]
[1736835364165,0.9246,3172.4,3172.3,43.32392187]
[1736835365167,0.9246,3172.4,3172.3,43.63932187]
[1736835365874,0.4665,3172.6,3172.5,0.31538]
[1736835366075,3.5237,3172.9,3172.6,0.31536]
[1736835366076,4.0,3172.9,3172.6,0.31536]
[1736835366268,4.0,3172.9,3172.8,2.52392187]
[1736835366872,4.0,3172.9,3172.8,43.63927187]
[1736835366873,3.5237,3172.9,3172.8,43.63927187]
[1736835367574,3.5237,3172.9,3172.8,43.32392187]
[1736835367771,3.5237,3172.9,3172.8,43.63927187]
[1736835369768,3.5237,3172.9,3172.8,44.88827187]
[1736835369969,3.5237,3172.9,3172.8,44.57292187]
[1736835370175,3.5237,3172.9,3172.8,44.88827187]
[1736835370371,0.4763,3173.0,3172.8,44.88827187]
[1736835370372,0.3159,3173.1,3172.8,44.57292187]
[1736835370569,0.3159,3173.1,3173.0,0.31533]
[1736835371275,0.3159,3173.1,3173.0,41.11533]
[1736835372374,0.3159,3173.5,3173.0,40.8]
[1736835372573,0.63121,3173.2,3173.1,2.52392187]
[1736835373273,0.3159,3173.2,3173.1,43.32392187]
[1736835373877,0.63121,3173.2,3173.1,43.32392187]
[1736835378780,0.63121,3173.2,3173.1,43.00802187]
[1736835382175,0.63121,3173.2,3173.1,40.8]
[1736835382985,0.3154,3172.4,3172.3,1.249]
[1736835383383,3.5232,3172.4,3172.3,1.249]
[1736835383579,3.2078,3172.4,3172.0,3.2078]
[1736835383783,0.31543,3172.0,3171.9,1.249]
[1736835383982,0.31543,3172.0,3171.9,42.049]
[1736835384482,0.31543,3172.0,3171.9,40.8]
[1736835385784,6.04715187,3172.0,3171.9,40.8]
[1736835386083,0.78861,3171.9,3171.1,1.249]
[1736835386287,0.31551,3171.2,3171.0,4.4568]
[1736835386483,0.4528,3171.1,3171.0,4.4568]
[1736835386883,0.4528,3171.1,3171.0,45.2568]
[1736835387288,0.76832,3171.1,3171.0,45.2568]
[1736835389596,0.76832,3171.1,3171.0,44.0078]
[1736835390598,0.76832,3171.1,3171.0,47.77872187]
[1736835390795,0.4528,3171.1,3171.0,47.77872187]
[1736835391293,0.76832,3171.1,3171.0,44.0078]
[1736835391902,0.4528,3171.1,3171.0,44.0078]
[1736835393702,0.4528,3171.1,3171.0,46.84725187]
[1736835394302,3.2078,3171.5,3171.0,46.53172187]
[1736835394507,3.2078,3171.5,3171.4,2.52392187]
[1736835394705,3.2078,3171.5,3171.1,2.78772187]
[1736835395007,3.52328,3171.5,3171.4,40.8]
[1736835398099,3.2078,3171.5,3171.4,43.63941187]
[1736835398404,3.2078,3171.5,3171.4,43.32392187]
[1736835399411,3.52328,3171.5,3171.4,43.32392187]
[1736835399606,3.2078,3171.5,3171.4,43.32392187]
[1736835401308,3.2078,3171.5,3171.4,43.63941187]
[1736835404417,3.2078,3171.5,3171.4,43.32392187]
[1736835404618,3.52328,3171.5,3171.4,43.32392187]
[1736835404807,3.2078,3171.5,3171.4,43.32392187]
[1736835407011,3.2078,3171.5,3171.4,43.63941187]
[1736835407406,3.2078,3171.5,3171.4,43.32392187]
[1736835407812,3.2078,3171.5,3171.4,43.63941187]
[1736835408515,1.28565,3171.8,3171.5,0.31547]
[1736835408716,0.9702,3171.8,3171.7,2.52392187]
[1736835409112,0.4787,3171.8,3171.7,2.83938187]
[1736835409414,0.4787,3171.8,3171.7,43.63938187]
[1736835409614,0.31541,3172.2,3171.9,0.31544]
[1736835409917,0.31541,3172.2,3172.1,2.52392187]
[1736835410213,4.1351,3172.3,3172.1,2.52392187]
[1736835410514,4.1351,3172.3,3172.2,40.8]
[1736835410717,4.1351,3172.3,3172.2,41.11541]
[1736835411408,4.4505,3172.3,3172.2,40.8]
[1736835413311,4.1351,3172.3,3171.7,3.77092187]
[1736835413515,0.31545,3171.8,3171.7,3.77092187]
[1736835414413,0.31545,3171.8,3171.7,44.57092187]
[1736835416413,0.31545,3171.8,3171.7,43.32392187]
[1736835417621,0.31545,3171.8,3171.7,40.8]
[1736835422121,0.55476585,3171.8,3171.7,40.8]
[1736835422925,3.2078,3172.1,3171.7,43.32392187]
[1736835423125,3.2078,3173.0,3172.0,5.04784374]
[1736835423325,3.52313,3173.0,3172.8,2.52392187]
[1736835423523,3.2078,3173.0,3172.9,40.8]
[1736835424518,3.2078,3173.0,3172.9,41.11534]
[1736835426431,3.2078,3173.4,3173.0,0.31532]
[1736835426627,3.2078,3173.4,3173.3,2.52392187]
[1736835426933,3.52309,3173.4,3173.3,2.52392187]
[1736835427222,0.3153,3173.3,3173.0,2.52392187]
[1736835427821,0.3153,3173.3,3173.2,40.8]
[1736835428226,3.52309,3173.4,3173.2,40.8]
[1736835428617,3.52309,3173.4,3173.3,2.52392187]
[1736835429321,3.52309,3173.4,3173.3,43.32392187]
[1736835429525,3.2078,3173.4,3173.3,43.32392187]
[1736835430128,3.52309,3173.4,3173.3,43.32392187]
[1736835430730,3.2078,3173.4,3173.3,43.32392187]
[1736835431125,3.52309,3173.4,3173.3,43.32392187]
[1736835431825,3.2078,3173.4,3173.3,43.32392187]
[1736835432528,3.2078,3173.4,3173.3,44.56992187]
[1736835433035,3.52309,3173.4,3173.3,44.56992187]
[1736835433226,3.2078,3173.4,3173.3,44.56992187]
[1736835434133,3.52309,3173.4,3173.3,44.56992187]
[1736835435431,3.2078,3173.4,3173.3,44.56992187]
[1736835435935,3.52309,3173.4,3173.3,44.56992187]
[1736835438326,3.2078,3173.4,3173.3,44.88522187]
[1736835438528,3.2078,3173.4,3173.3,44.56992187]
[1736835438933,0.31526,3173.7,3173.3,44.56992187]
[1736835439227,3.2078,3173.8,3173.6,2.52392187]
[1736835439629,3.2078,3173.8,3173.7,40.8]
[1736835440030,3.2078,3173.8,3173.7,41.11526]
[1736835443642,3.2078,3173.8,3173.7,40.8]
[1736835443939,3.2078,3173.8,3173.7,41.11526]
[1736835444934,3.52305,3173.8,3173.7,40.8]
[1736835445239,3.2078,3173.8,3173.7,40.8]
[1736835446141,3.2078,3173.8,3173.7,41.11526]
[1736835447634,3.2078,3173.8,3173.7,40.8]
[1736835447834,3.52305,3173.8,3173.7,40.8]
[1736835448043,3.2078,3173.8,3173.7,41.11526]
[1736835449333,3.6938,3174.2,3173.7,41.11526]
[1736835449642,0.31523,3174.0,3173.7,0.31525]
[1736835449847,0.4685,3173.9,3173.8,0.31525]
[1736835450647,0.4685,3173.9,3173.8,41.11525]
[1736835450848,0.78374,3173.9,3173.8,40.8]
[1736835451546,0.4685,3173.9,3173.8,41.11525]
[1736835451947,0.78374,3173.9,3173.8,40.8]
[1736835452244,0.4685,3173.9,3173.8,40.8]
[1736835452448,0.4685,3173.9,3173.8,41.11525]
[1736835452947,0.9493,3173.9,3173.8,40.8]
[1736835453148,0.9493,3173.9,3173.8,41.11525]
[1736835453446,1.26454,3173.9,3173.8,40.8]
[1736835453847,1.26454,3173.9,3173.8,43.32392187]
[1736835454648,0.9493,3173.9,3173.8,43.63917187]
[1736835454848,1.26454,3173.9,3173.8,43.32392187]
[1736835455245,0.9493,3173.9,3173.8,43.63917187]
[1736835459652,1.26454,3173.9,3173.8,43.32392187]
[1736835460546,1.26454,3173.9,3173.8,44.87917187]
[1736835461449,1.26454,3173.9,3173.8,40.8]
[1736835461645,1.26454,3173.9,3173.5,2.52392187]
[1736835461646,0.31527,3173.6,3173.5,2.52392187]
[1736835461847,0.3153,3173.3,3173.2,2.52392187]
[1736835462044,3.5231,3173.3,3173.2,2.52392187]
[1736835462243,0.3153,3173.3,3173.2,2.52392187]
[1736835462651,0.3153,3173.3,3173.2,43.32392187]
[1736835463051,0.8117,3173.3,3173.2,43.32392187]
[1736835464354,0.4964,3173.3,3173.2,43.32392187]
[1736835464759,0.8117,3173.3,3173.2,43.32392187]
[1736835467159,0.4964,3173.3,3173.2,43.32392187]
[1736835467655,0.8117,3173.3,3173.2,43.32392187]
[1736835469547,0.4964,3173.3,3173.2,43.63923187]
[1736835469753,0.4937,3173.5,3173.2,43.32392187]
[1736835469964,0.4937,3173.5,3173.4,0.31529]
[1736835470459,0.4937,3173.5,3173.4,41.11529]
[1736835471455,3.2078,3173.7,3173.4,40.8]
[1736835471653,0.31524,3173.9,3173.7,0.31525]
[1736835471858,0.83743,3174.0,3173.9,2.52392187]
[1736835472259,0.83743,3174.0,3173.9,43.32392187]
[1736835473151,0.5222,3174.0,3173.9,43.63916187]
[1736835474056,0.83743,3174.0,3173.9,43.32392187]
[1736835475262,0.5222,3174.0,3173.9,43.32392187]
[1736835475662,0.83743,3174.0,3173.9,43.32392187]
[1736835475965,0.5222,3174.0,3173.9,43.63916187]
[1736835476659,0.5222,3174.0,3173.9,43.32392187]
[1736835476963,0.83743,3174.0,3173.9,43.32392187]
[1736835477555,0.83743,3174.0,3173.9,40.8]
[1736835477860,0.31528,3173.5,3173.3,2.52392187]
[1736835478055,1.0187,3173.4,3173.3,2.83922187]
[1736835478260,1.5401,3173.4,3173.3,2.83922187]
[1736835478566,1.5401,3173.4,3173.3,2.52392187]
[1736835478858,1.5401,3173.4,3173.3,43.32392187]
[1736835480165,1.85539,3173.4,3173.3,43.32392187]
[1736835481265,1.85539,3173.4,3173.3,40.8]
[1736835481471,5.06319,3173.4,3173.3,40.8]
[1736835483567,5.29403166,3173.4,3173.3,43.32392187]
[1736835483767,4.7479,3173.4,3173.3,43.63922187]
[1736835484566,3.2078,3173.4,3173.3,43.63922187]
[1736835484871,3.52305,3173.8,3173.4,0.31529]
[1736835485168,3.52305,3173.8,3173.7,2.52392187]
[1736835485568,3.52305,3173.8,3173.7,43.32392187]
[1736835487162,3.2078,3173.8,3173.7,43.63918187]
[1736835491271,3.2078,3173.8,3173.7,43.32392187]
[1736835492574,3.2078,3173.8,3173.7,43.63918187]
[1736835493871,3.2078,3173.8,3173.7,43.32392187]
[1736835494168,3.52305,3173.8,3173.7,43.32392187]
[1736835494975,0.31525,3173.8,3173.7,43.32392187]
[1736835495275,0.31524,3173.9,3173.7,43.63918187]
[1736835495474,3.2078,3174.1,3173.7,2.83918187]
[1736835495775,0.31523,3174.0,3173.9,2.52392187]
[1736835495965,0.31523,3174.0,3173.9,43.32392187]
[1736835497077,0.54712168,3174.0,3173.9,43.32392187]
[1736835497475,3.52303,3174.1,3173.9,43.32392187]
[1736835497774,0.31523,3174.0,3173.9,43.32392187]
[1736835498575,3.2078,3174.1,3173.9,43.32392187]
[1736835498772,3.52302,3174.1,3173.9,43.32392187]
[1736835499677,0.31523,3174.0,3173.9,43.32392187]
[1736835500667,0.82133,3174.0,3173.9,43.32392187]
[1736835501075,0.5061,3174.0,3173.9,43.32392187]
[1736835502671,3.2078,3174.1,3174.0,0.31523]
[1736835503279,3.2078,3174.1,3174.0,41.11523]
[1736835503673,3.2078,3174.5,3174.3,0.31519]
[1736835503874,3.2078,3174.5,3174.4,2.83911187]
[1736835504478,3.2078,3174.5,3174.4,43.63911187]
[1736835505178,1.5554,3174.8,3174.4,43.32392187]
[1736835505480,0.31517,3174.6,3174.4,41.11518]
[1736835506778,0.31516,3174.7,3174.5,0.31518]
[1736835506977,0.31516,3174.7,3174.6,2.52392187]
[1736835507173,1.87055,3174.8,3174.6,2.52392187]
[1736835507382,1.5554,3174.8,3174.6,2.52392187]
[1736835507581,1.87055,3174.8,3174.7,40.8]
[1736835507783,1.019,3174.8,3174.7,41.11516]
[1736835508084,0.5129,3174.8,3174.7,40.8]
[1736835508382,0.5129,3174.8,3174.7,41.11516]
[1736835508579,0.5129,3174.8,3174.7,40.8]
[1736835508979,0.5129,3174.8,3174.7,41.11516]
[1736835509684,0.5129,3174.8,3174.7,40.8]
[1736835510588,0.5129,3174.8,3174.7,41.11516]
[1736835510788,0.5129,3174.8,3174.7,40.8]
[1736835512279,0.82805,3174.8,3174.7,40.8]
[1736835513487,0.5129,3174.8,3174.0,3.76392187]
[1736835513686,3.2078,3174.4,3174.0,3.76392187]
[1736835513884,0.9917,3174.3,3174.0,3.76392187]
[1736835514074,0.83661,3174.2,3174.0,3.76392187]
[1736835514283,0.83661,3174.2,3174.0,2.52392187]
[1736835514482,0.83661,3174.2,3174.1,40.8]
[1736835519993,0.5214,3174.2,3174.1,40.8]
[1736835520192,3.2078,3174.4,3174.3,0.3152]
[1736835520389,3.2078,3174.4,3174.3,2.83912187]
[1736835520884,3.2078,3174.4,3174.3,43.63912187]
[1736835521487,0.31517,3174.6,3174.4,0.31519]
[1736835523094,3.21038903,3174.8,3174.3,43.32392187]
[1736835523297,3.21038903,3174.8,3174.7,2.83908187]
[1736835523596,3.21038903,3174.8,3174.7,4.07908187]
[1736835523988,3.21038903,3174.8,3174.7,44.87908187]
[1736835524596,0.00258903,3174.8,3174.7,44.87908187]
[1736835527985,0.00258903,3174.8,3174.7,44.56392187]
[1736835528190,0.31773903,3174.8,3174.7,40.8]
[1736835529797,0.31773903,3174.8,3174.7,43.32392187]
[1736835533103,0.31773903,3174.8,3174.7,40.8]
[1736835533800,3.52553903,3174.8,3174.7,40.8]
[1736835533996,0.00258903,3174.8,3174.7,43.63908187]
[1736835544221,3.2078,3175.2,3175.1,0.31512]
[1736835544423,3.2078,3175.2,3175.1,4.07904187]
[1736835544817,3.2078,3175.2,3175.1,44.87904187]
[1736835545213,0.23486276,3175.3,3175.1,44.56392187]
[1736835545416,0.23486276,3175.3,3175.2,0.31511]
[1736835546026,0.4945,3175.4,3175.3,0.3151]
[1736835546214,4.2142,3176.1,3175.3,3.2078]
[1736835546416,4.7028,3176.1,3176.0,2.52392187]
[1736835546627,4.7028,3176.1,3176.0,43.32392187]
[1736835546833,1.495,3176.1,3176.0,43.63895187]
[1736835547922,0.001,3176.2,3176.0,43.32392187]
[1736835548125,0.001,3176.2,3176.1,0.31502]
[1736835548421,0.31502,3176.1,3176.0,1.239]
[1736835548628,0.83532,3176.1,3176.0,1.239]
[1736835548814,0.83532,3176.1,3176.0,42.039]
[1736835549427,0.5203,3176.1,3176.0,42.35403]
[1736835549926,0.5203,3176.1,3176.0,42.039]
[1736835550224,0.83532,3176.1,3176.0,42.039]
[1736835552325,0.83532,3176.1,3176.0,40.8]
[1736835553022,0.5203,3176.1,3176.0,40.8]
[1736835553621,0.5203,3176.1,3176.0,41.11503]
[1736835553925,0.5203,3176.1,3176.0,40.8]
[1736835554314,0.5203,3176.1,3176.0,41.11503]
[1736835555918,0.001,3176.2,3176.1,0.31502]
[1736835556223,0.001,3176.2,3175.9,3.76292187]
[1736835556626,0.001,3176.2,3176.1,40.8]
[1736835557325,0.001,3176.2,3176.1,41.11502]
[1736835558124,0.001,3176.2,3176.1,40.8]
[1736835558431,0.31601,3176.2,3176.1,40.8]
[1736835560222,0.001,3176.2,3176.1,41.11502]
[1736835560629,0.001,3176.2,3176.1,40.8]
[1736835560829,0.001,3176.2,3176.1,41.11502]
[1736835572943,0.31601,3176.2,3176.1,40.8]
[1736835575340,0.001,3176.2,3176.1,41.11502]
[1736835578038,0.001,3176.2,3176.1,40.8]
[1736835578347,0.31601,3176.2,3176.1,40.8]
[1736835578844,0.001,3176.2,3176.1,40.8]
[1736835579044,0.001,3176.2,3176.1,41.11502]
[1736835583050,0.31601,3176.2,3176.1,40.8]
[1736835585148,3.52381,3176.2,3176.1,40.8]
[1736835586049,3.99634,3176.2,3175.6,1.239]
[1736835586251,0.31506,3175.7,3175.3,2.52392187]
[1736835586450,0.31509,3175.4,3175.3,3.76292187]
[1736835586944,0.31509,3175.4,3175.3,44.56292187]
[1736835587757,3.52289,3175.4,3175.3,43.32392187]
[1736835592765,0.31509,3175.4,3175.3,43.32392187]
[1736835593064,3.52289,3175.4,3175.3,43.32392187]
[1736835594665,3.2078,3175.4,3175.3,43.63902187]
[1736835595958,3.2078,3175.4,3175.3,43.32392187]
[1736835597363,3.2078,3175.4,3175.3,43.63902187]
[1736835598759,3.52289,3175.4,3175.3,43.32392187]
[1736835600264,3.2078,3175.4,3175.3,43.32392187]
[1736835601574,3.2078,3175.4,3175.3,43.63902187]
[1736835603467,3.2078,3175.8,3175.3,43.32392187]
[1736835603670,3.2078,3175.8,3175.4,2.52392187]
[1736835603868,0.31508,3175.5,3175.4,2.52392187]
[1736835604271,0.31508,3175.5,3175.4,43.32392187]
[1736835609070,0.31508,3175.5,3175.4,40.8]
[1736835609374,0.31508,3175.5,3174.0,0.78806]
[1736835609375,7.52392187,3175.5,3174.4,2.52392187]
[1736835609580,0.31518,3174.6,3174.4,2.83910187]
[1736835609868,3.2078,3174.9,3174.7,0.31515]
[1736835610072,3.2078,3174.9,3174.8,2.52392187]
[1736835610273,3.2078,3174.9,3174.8,43.32392187]
[1736835610474,3.2078,3174.9,3174.8,43.63907187]
[1736835612473,3.2078,3175.3,3174.8,43.32392187]
[1736835612668,3.52291,3175.3,3175.2,2.52392187]
[1736835613278,3.52291,3175.3,3175.2,43.32392187]
[1736835614782,3.2078,3175.3,3175.2,43.32392187]
[1736835614978,1.37019,3175.4,3175.2,43.63903187]
[1736835615379,1.0551,3175.4,3175.2,43.32392187]
[1736835615678,1.0551,3175.4,3175.3,0.3151]
[1736835616273,1.0551,3175.4,3175.3,41.1151]
[1736835618873,0.31504,3176.0,3175.6,0.31507]
[1736835619075,0.31504,3176.0,3175.7,0.31506]
[1736835619283,0.5232,3175.9,3175.7,0.31506]
[1736835619579,0.5232,3175.9,3175.8,0.31505]
[1736835620174,0.5232,3175.9,3175.8,41.11505]
[1736835620578,4.2354,3176.1,3176.0,0.31503]
[1736835620778,1.0276,3176.1,3176.0,0.31503]
[1736835621170,0.4928,3176.1,3176.0,41.11503]
[1736835622079,0.4928,3176.1,3176.0,40.8]
[1736835622279,0.80782,3176.1,3176.0,40.8]
[1736835622479,1.34452,3176.1,3176.0,40.8]
[1736835622784,4.55232,3176.1,3176.0,40.8]
[1736835624380,4.2373,3176.1,3175.5,1.239]
[1736835624681,3.52287,3175.6,3175.5,1.239]
[1736835625378,3.2078,3175.6,3174.9,16.13172187]
[1736835625684,0.5204,3175.5,3174.9,5.73172187]
[1736835626082,0.31514,3174.9,3174.8,1.239]
[1736835626282,0.31518,3174.5,3174.4,3.2078]
[1736835626487,0.31518,3174.5,3174.4,40.8]
[1736835631383,0.31524,3174.0,3173.8,2.52392187]
[1736835631684,1.85884,3173.9,3173.8,2.52392187]
[1736835632487,1.5436,3173.9,3173.8,43.32392187]
[1736835633998,1.85884,3173.9,3173.8,43.32392187]
[1736835635084,5.06664,3173.9,3173.8,40.8]
[1736835635792,0.31529,3173.4,3173.2,3.76292187]
[1736835636488,0.81719,3173.4,3173.2,3.76292187]
[1736835636792,0.5019,3173.4,3173.3,40.8]
[1736835637684,0.81719,3173.4,3173.3,40.8]
[1736835641181,0.31536,3172.7,3172.6,2.52392187]
[1736835641992,0.31538,3172.5,3172.4,1.24]
[1736835642194,3.52318,3172.5,3172.4,40.8]
[1736835660897,0.31543,3172.0,3171.9,1.0518]
[1736835661098,0.78849,3172.4,3171.7,1.24]
[1736835661099,0.31545,3171.8,3171.7,1.24]
[1736835661704,0.31546,3171.7,3171.6,1.0687]
[1736835661898,0.31546,3171.7,3171.6,41.8687]
[1736835662495,0.31546,3171.7,3171.6,40.8]
[1736835669310,0.31546,3171.8,3171.6,40.8]
[1736835669615,0.31545,3171.8,3171.5,6.04719187]
[1736835669817,0.31545,3171.8,3171.6,0.31546]
[1736835670114,0.31544,3171.9,3171.7,41.11545]
[1736835670311,0.31544,3171.9,3171.8,2.52392187]
[1736835670614,0.31544,3171.9,3171.8,3.06742187]
[1736835671006,0.31544,3171.9,3171.8,43.86742187]
[1736835672709,0.31544,3171.9,3171.8,40.8]
[1736835677214,0.31546,3171.7,3171.6,94.28]
[1736835678112,0.31546,3171.7,3171.6,135.08]
[1736835679720,1.30066,3171.7,3171.6,135.08]
[1736835684016,12.54858187,3171.7,3171.6,133.1964955]
[1736835684317,13.22059762,3171.7,3171.6,127.3468281]
[1736835684514,13.22059762,3171.7,3171.6,123.75496038]
[1736835684914,7.92469734,3171.7,3171.6,123.75496038]
[1736835685419,5.40077547,3171.7,3171.6,123.75496038]
[1736835685621,5.02466,3171.7,3171.6,123.75496038]
[1736835686017,5.02466,3171.7,3171.6,123.43928588]
[1736835688118,3.2078,3172.0,3171.6,125.96320775]
[1736835688330,0.31546,3171.8,3171.7,0.5052]
[1736835688625,0.31546,3171.8,3171.7,1.035]
[1736835688917,0.31546,3171.8,3171.7,41.835]
[1736835690424,0.31546,3171.8,3171.7,40.8]
[1736835690813,0.82326,3171.8,3171.7,40.8]
[1736835691725,0.31546,3171.8,3171.7,40.8]
[1736835694926,0.31546,3171.7,3171.6,82.63928588]
[1736835695126,5.62586,3171.7,3171.6,82.63928588]
[1736835695329,5.62586,3171.7,3171.6,81.76062588]
[1736835695520,5.62586,3171.7,3171.6,79.98458903]
[1736835695919,5.62586,3171.7,3171.6,120.78458903]
[1736835695920,10.62586,3171.7,3171.6,120.78458903]
[1736835696122,10.95120532,3171.7,3171.6,120.78458903]
[1736835696523,5.95120532,3171.7,3171.6,120.78458903]
[1736835696818,5.62586,3171.7,3171.6,120.46892948]
[1736835697329,10.62586,3171.7,3171.6,120.46892948]
[1736835697530,10.95120532,3171.7,3171.6,120.46892948]
[1736835698225,10.95120532,3171.7,3171.6,117.98702948]
[1736835698424,10.95120532,3171.7,3171.6,111.38405288]
[1736835698627,10.95120532,3171.7,3171.6,108.52581288]
[1736835698926,10.95120532,3171.7,3171.6,106.97120556]
[1736835699129,10.95120532,3171.7,3171.6,102.51891562]
[1736835699324,10.62586,3171.7,3171.6,101.36410562]
[1736835699524,10.62586,3171.7,3171.6,88.28339518]
[1736835699726,10.62586,3171.7,3171.6,85.25483518]
[1736835699922,10.62586,3171.7,3171.6,82.51006518]
[1736835700529,10.62586,3171.7,3171.6,81.48035518]
[1736835700743,10.62586,3171.7,3171.6,80.37089518]
[1736835700928,10.62586,3171.7,3171.6,78.79855786]
[1736835701231,10.62586,3171.7,3171.6,77.79575786]
[1736835701532,10.62586,3171.7,3171.6,76.81930786]
[1736835701533,10.92705884,3171.7,3171.6,76.81930786]
[1736835701924,11.17953783,3171.7,3171.6,76.02355786]
[1736835702125,11.17953783,3171.7,3171.6,75.16488786]
[1736835703033,11.17953783,3171.7,3171.6,74.84916054]
[1736835704733,12.42053783,3171.7,3171.6,74.84916054]
[1736835704928,12.42053783,3171.7,3171.6,74.53343322]
[1736835705533,12.42053783,3171.7,3171.6,72.7570487]
[1736835705727,12.42053783,3171.7,3171.6,71.6488487]
[1736835705928,12.42053783,3171.7,3171.6,71.37916233]
[1736835706138,12.42053783,3171.7,3171.6,70.27096233]
[1736835706837,12.42053783,3171.7,3171.6,66.59203843]
[1736835707037,12.42053783,3171.7,3171.6,65.45468935]
[1736835707238,12.42053783,3171.7,3171.6,63.90641935]
[1736835707534,12.65729989,3171.7,3171.6,61.61701935]
[1736835707736,3.724,3171.6,3170.1,0.1551]
[1736835707933,3.52339,3170.4,3170.1,0.1551]
[1736835708331,0.3156,3170.3,3170.0,1.054]
[1736835708834,0.3156,3170.3,3170.2,40.8]
[1736835709238,0.3156,3170.3,3169.8,2.52392187]
[1736835709239,3.724,3170.2,3169.4,2.52392187]
[1736835709539,3.2078,3169.8,3169.6,0.5197]
[1736835710232,3.2078,3169.8,3169.7,40.8]
[1736835710633,3.2078,3169.8,3169.7,43.32392187]
[1736835711642,6.9318,3170.2,3169.7,43.32392187]
[1736835711843,6.9318,3170.2,3170.0,2.52392187]
[1736835712138,3.2078,3170.2,3170.1,0.5005]
[1736835712341,3.2078,3170.2,3170.1,1.1755]
[1736835712738,3.2078,3170.2,3170.1,41.9755]
[1736835719055,3.52341,3170.2,3170.1,41.8202]
[1736835719454,3.52341,3170.2,3170.1,40.8]
[1736835721455,6.50641,3170.2,3170.1,40.8]
[1736835722755,6.7375141,3170.2,3170.1,40.8]
[1736835723166,6.4219041,3170.2,3169.6,1.0498]
[1736835723464,2.983,3169.7,3169.6,1.0498]
[1736835724157,2.983,3169.7,3169.6,41.8498]
[1736835724964,2.983,3169.7,3169.6,42.16547]
[1736835726057,0.29612896,3170.0,3169.9,0.31564]
[1736835726258,2.983,3170.1,3170.0,0.31563]
[1736835726861,2.983,3170.1,3170.0,41.11563]
[1736835729659,3.2078,3170.2,3170.1,0.31562]
[1736835729965,3.2078,3170.2,3170.1,0.47182]
[1736835730465,3.2078,3170.2,3170.1,41.27182]
[1736835730766,3.27912896,3170.4,3170.3,0.3156]
[1736835730965,2.983,3170.4,3170.3,2.83952187]
[1736835731366,2.983,3170.4,3170.3,43.63952187]
[1736835731761,3.2078,3170.6,3170.5,0.31558]
[1736835732565,3.2078,3170.6,3170.5,41.11558]
[1736835733167,3.2078,3170.6,3170.5,40.8]
[1736835733467,3.2078,3170.6,3170.5,41.11558]
[1736835740776,3.7174,3170.6,3170.5,41.11558]
[1736835742280,5.8804,3170.6,3170.5,41.11558]
[1736835742480,6.3748,3170.6,3170.5,41.11558]
[1736835742978,6.67083244,3170.6,3170.5,41.11558]
[1736835750484,6.67083244,3170.6,3170.5,43.63950187]
[1736835750879,5.66683244,3170.6,3170.5,43.63950187]
[1736835751081,5.3708,3170.6,3170.5,43.63950187]
[1736835753880,2.163,3170.6,3170.5,43.63950187]
[1736835754380,0.5175,3170.7,3170.6,0.31557]
[1736835754979,0.5175,3170.7,3170.6,41.11557]
[1736835760183,0.29603244,3171.0,3170.9,0.31554]
[1736835760496,3.2078,3171.4,3171.3,0.3155]
[1736835760794,3.2078,3171.4,3171.3,41.1155]
[1736835762896,3.2078,3171.4,3171.3,40.8]
[1736835763398,3.52329,3171.4,3171.3,40.8]
[1736835764396,3.52329,3171.4,3170.9,0.31553]
[1736835764595,3.2078,3171.0,3170.9,0.31553]
[1736835764990,3.2078,3171.0,3170.9,2.83945187]
[1736835765300,3.2078,3171.0,3170.9,43.63945187]
[1736835765499,0.5361,3171.3,3171.2,0.31551]
[1736835765896,0.31552,3171.1,3170.0,3.2078]
[1736835766193,3.2078,3170.8,3170.5,6.50056891]
[1736835766396,0.5361,3170.7,3170.5,6.81613891]
[1736835766792,0.5361,3170.7,3170.6,40.8]
[1736835769391,2.6991,3170.7,3170.6,40.8]
[1736835770997,3.2509,3170.7,3170.6,40.8]
[1736835772993,3.56646,3170.7,3170.6,40.8]
[1736835773796,3.2509,3170.7,3170.6,40.8]
[1736835774498,3.7897,3170.7,3170.6,40.8]
[1736835775504,3.7897,3170.7,3170.6,41.11557]
[1736835775712,3.2536,3170.7,3170.6,41.11557]
[1736835776097,2.163,3170.7,3170.6,41.11557]
[1736835781202,3.2078,3170.8,3170.6,47.30056891]
[1736835781404,3.2078,3170.8,3170.7,0.31556]
[1736835782109,3.2078,3170.8,3170.7,41.11556]
[1736835784413,3.2078,3170.8,3170.7,41.30026]
[1736835784912,2.163,3171.0,3170.9,0.31554]
[1736835785211,2.163,3171.0,3170.9,2.83946187]
[1736835785604,2.163,3171.0,3170.9,43.63946187]
[1736835787215,1.0361,3171.1,3170.9,43.32392187]
[1736835787516,1.0361,3171.1,3171.0,0.31553]
[1736835788011,3.2078,3171.2,3171.1,0.31552]
[1736835788212,4.2938,3171.2,3171.1,41.11552]
[1736835788513,4.2938,3171.2,3171.1,40.8]
[1736835788514,4.60931,3171.2,3171.1,40.8]
[1736835789202,4.2938,3171.2,3171.1,40.8]
[1736835790915,4.2938,3171.2,3171.1,41.11552]
[1736835792118,4.2938,3171.2,3171.1,40.8]
[1736835792316,3.2078,3171.2,3171.1,40.8]
[1736835792515,3.2078,3171.2,3171.1,41.11552]
[1736835794327,3.2078,3171.6,3171.5,0.31548]